Cogmind - Beta 13 @@@ ROGUE MODE // 2024.05.05 @ 08:40:03 Player: Bace Troncons Result: Destroyed by as-22472 with Assembled Blade Performance ------------- Evolutions (0) 0 Regions Visited (4) 800 Robots Destroyed (25) 125 Value Destroyed (448) 448 Prototype IDs (23) 460 Alien Tech Used (0) 0 Bonus (300) 300 TOTAL SCORE: 2133 Bonus ------- Aligned with FarCom 300 Cogmind --------- Core Integrity 0/250 Matter 258/300 Energy 250/250 System Corruption 8% Temperature Cool (0) Movement Walking (260) Ox2 Location -9/Mines Parts ------- > --- POWER (1) -------- Ion Engine > --- PROPULSION (2) --- Aluminum Leg > --- UTILITY (2) ------ Large Storage Unit > --- WEAPON (2) ------- Light Assault Rifle > --- INVENTORY (15) --- Light Ion Engine Superbattery (1500) Weight Redist. System Sensor Array Signal Interpreter Terrain Scanner Weapon Shielding EM Pulse Gun Light Assault Rifle Light Assault Rifle Peak State ------------ > --- POWER ------------ Ion Engine > --- PROPULSION ------- Aluminum Leg Aluminum Leg > --- UTILITY ---------- Large Storage Unit Medium Armor Plating > --- WEAPON ----------- Light Assault Rifle Mini Grenade Launcher > --- INVENTORY -------- Light Ion Engine Superbattery Weight Redist. System Sensor Array Signal Interpreter Terrain Scanner Weapon Shielding EM Pulse Gun Light Assault Rifle Light Assault Rifle [Rating: 11] Favorites ----------- Power Ion Engine Engine Ion Engine Power Core Light Nuclear Core Propulsion Light Treads Treads Light Treads Leg Aluminum Leg Utility Large Storage Unit Storage Large Storage Unit Protection Light Armor Plating Weapon Light Assault Rifle Energy Gun EM Pulse Gun Ballistic Gun Light Assault Rifle Launcher Mini Grenade Launcher Build | -11 -10 -10 -10 -9 ------- Run | Yrd Mat Min Exi Min Slots Evolved . | . . . . . Power . | . . . . . Propulsion . | . . . . . Utility . | . . . . . Weapon . | . . . . . Parts Attached 19 | 6 4 7 . 2 Power 3 | 1 . 2 . . Engine 2 | 1 . 1 . . Core 1 | . . 1 . . Reactor . | . . . . . Propulsion 6 | 2 1 3 . . Treads 4 | 2 1 1 . . Leg 2 | . . 2 . . Wheel . | . . . . . Hover . | . . . . . Flight . | . . . . . Utility 5 | 1 2 1 . 1 Device . | . . . . . Storage 2 | 1 1 . . . Processor . | . . . . . Hackware . | . . . . . Protection 3 | . 1 1 . 1 Artifact . | . . . . . Weapon 5 | 2 1 1 . 1 Energy Gun 1 | 1 . . . . Energy Cannon . | . . . . . Ballistic Gun 3 | 1 1 1 . . Ballistic Cannon . | . . . . . Launcher 1 | . . . . 1 Special Weapon . | . . . . . Impact Weapon . | . . . . . Slashing Weapon . | . . . . . Piercing Weapon . | . . . . . Special Melee Weapon . | . . . . . Unidentified Prototypes . | . . . . . Corrupted Parts 1 | . 1 . . . System Corruption 2 | . 2 . . . Parts Lost 10 | . . 7 . 3 Power 2 | . . 2 . . Propulsion 4 | . . 3 . 1 Utility 2 | . . 1 . 1 Weapon 2 | . . 1 . 1 Highest Loss Streak 7 | . . 7 . 3 To Critical Strikes . | . . . . . Average Slot Usage (%) 96 | . 99 84 100 100 Engine 13 | . 14 10 14 14 Treads 16 | . 28 9 . . Leg 11 | . . 14 28 28 Storage 14 | . 14 14 14 14 Protection 13 | . 13 13 14 14 Energy Gun 1 | . 3 . . . Ballistic Gun 24 | . 24 19 28 26 Naked Turns . | . . . . . Heaviest Build 34 | 14 31 31 28 34 Greatest Support 40 | 40 40 40 20 20 Greatest Overweight (x) 7 | 4 . 7 1 2 Average Overweight (x) . | . . . 1 1 Largest Inventory Capacity 15 | 8 15 15 15 15 Average Capacity 13 | 7 12 15 15 15 Most Carried 11 | 3 11 11 8 10 Average Carried 6 | 1 6 7 7 9 Final Capacity 15 | 8 15 15 15 15 Final Carried 11 | 3 11 7 8 10 Class Distribution -------------------- 100% | Mutant Dominant Class ---------------- Mutant | -10/Materials Mutant | -10/Mines Mutant | -10/Exiles Mutant | -9/Mines Resources | -11 -10 -10 -10 -9 ----------- Run | Yrd Mat Min Exi Min Matter Collected 644 | 229 316 93 . 6 Remotely . | . . . . . Salvage Created 789 | . 633 132 . 24 Parts 55 | . 41 12 . 2 Haulers Intercepted 2 | . 2 . . . Recyclers Shooed 1 | . 1 . . . Parts Field Recycled . | . . . . . Retrieved Matter . | . . . . . Parts Self-Destructed . | . . . . . Prevented . | . . . . . Kills | -11 -10 -10 -10 -9 ------- Run | Yrd Mat Min Exi Min Combat Hostiles Destroyed 19 | . 12 5 . 2 Guns 17 | . 12 5 . . AOE 2 | . . . . 2 Classes Destroyed 7 | . 6 . . 1 Worker 2 | . 1 . . 1 Hauler 2 | . 2 . . . Recycler 1 | . 1 . . . Watcher 3 | . 3 . . . Swarmer 9 | . 6 3 . . Grunt 8 | . 6 2 . . Assembled 2 | . . . . 2 Best Kill Streak 4 | . 4 3 . 3 Combat Bots Only 4 | . 4 3 . 2 Max Kills in Single Turn 3 | . 1 1 . 3 Gunslinging . | . . . . . Exploded 2 | . . . . 2 Melee . | . . . . . Uniques/NPCs Destroyed . | . . . . . Combat | -11 -10 -10 -10 -9 -------- Run | Yrd Mat Min Exi Min Hostile Shots Fired 160 | . 72 74 . 14 Missed 42 | . 19 20 . 3 Damage Taken 1374 | . 506 590 . 278 Core 259 | . 57 117 . 85 Absorbed by Shields . | . . . . . Redirected to Shielding 12 | . . 12 . . Core Remaining (%) 100 | 100 . . . . Volleys Fired 127 | . 73 53 . 1 Largest 2 | . 2 2 . 2 Hottest 60 | . 60 40 . 50 Shots Fired 186 | . 127 57 . 2 Gun 185 | . 127 57 . 1 Cannon . | . . . . . Launcher 1 | . . . . 1 Special . | . . . . . Kinetic 166 | . 108 57 . 1 Thermal . | . . . . . Explosive 1 | . . . . 1 Electromagnetic 19 | . 19 . . . Robot Hit Streak 14 | . 14 7 . 3 Robot Miss Streak 4 | . 4 3 . . Penetration Max . | . . . . . Secondary Targets 2 | . 2 . . . Max Gunslinging Chain 1 | . 1 . . . Shots Hit Robots 119 | . 79 38 . 2 Core Hits 57 | . 34 13 . 10 Critical Kills 2 | . 2 . . . Critical Parts Destroyed . | . . . . . Critical Strikes 3 | . 3 . . . Destroy 2 | . 2 . . . Corrupt 1 | . 1 . . . Melee Attacks . | . . . . . Impact . | . . . . . Slashing . | . . . . . Piercing . | . . . . . Sneak Attacks . | . . . . . Combat Hostiles . | . . . . . Follow-up Attacks . | . . . . . Damage Inflicted 1674 | . 893 307 . 474 Guns 1210 | . 893 307 . 10 Cannons . | . . . . . Explosions 464 | . . . . 464 Melee . | . . . . . Ramming . | . . . . . Kinetic 1029 | . 712 307 . 10 Thermal . | . . . . . Explosive 464 | . . . . 464 Electromagnetic 181 | . 181 . . . Impact . | . . . . . Slashing . | . . . . . Piercing . | . . . . . Highest Corruption 8 | . 2 2 2 8 Average Corruption 2 | . 2 2 2 2 Corruption Purged . | . . . . . Corruption Blocked . | . . . . . Effects 21 | . 11 6 4 . Message Errors 6 | . 4 2 . . Matter Fused 7 | . 5 1 1 . Heat Flow Errors 1 | . . . 1 . Energy Discharges 3 | . 2 . 1 . Data Loss (minor) 1 | . . 1 . . Data Loss (major) 2 | . . 1 1 . Weapon Failures 1 | . . 1 . . Overload Shots . | . . . . . Overflow Damage 42 | . . . . 42 Projectiles . | . . . . . Explosions 42 | . . . . 42 Melee . | . . . . . Knockbacks . | . . . . . Impact . | . . . . . Kinetic . | . . . . . Secondary . | . . . . . Self-Inflicted Damage 34 | . . . . 34 Shots 1 | . . . . 1 Rammed . | . . . . . Targets Rammed . | . . . . . Kicked . | . . . . . Crushed . | . . . . . Highest Temperature 262 | . 147 21 262 13 Average Temperature 31 | . 26 6 138 10 Received Heat Transfer 396 | . 150 246 . . Effects 2 | . . . 2 . Interference 2 | . . . 2 . Siege Activations . | . . . . . Robots Corrupted . | . . . . . Combat Hostiles . | . . . . . Parts Fried . | . . . . . Impact Corruptions . | . . . . . Robots Melted . | . . . . . Combat Hostiles . | . . . . . Parts Melted . | . . . . . Heat Transferred . | . . . . . Parts Sabotaged . | . . . . . Parts Stolen . | . . . . . Parts Stripped . | . . . . . Power Chain Reactions . | . . . . . Alert | -11 -10 -10 -10 -9 ------- Run | Yrd Mat Min Exi Min Peak Influence 235 | . 235 113 . 37 Initial 33 | . . 33 . . Average 84 | . 119 42 . 2 Maximum Alert Level 1 | . 1 . . . Low Security (%) 98 | 100 97 100 . 100 Level 1 1 | . 2 . . . Level 2 . | . . . . . Level 3 . | . . . . . Level 4 . | . . . . . Level 5 . | . . . . . High Security . | . . . . . Max Security . | . . . . . Squads Dispatched 2 | . 2 . . . Investigation 2 | . 2 . . . Extermination . | . . . . . Reinforcement . | . . . . . Assault . | . . . . . Garrison . | . . . . . Intercept . | . . . . . Searches Triggered . | . . . . . Construction Impeded . | . . . . . Haulers Reinforced . | . . . . . Active Scanning Responses . | . . . . . Cargo Convoy Interrupts . | . . . . . Stealth | -11 -10 -10 -10 -9 --------- Run | Yrd Mat Min Exi Min Distress Signals 2 | . 2 . . . Communications Jammed . | . . . . . Distress Signals . | . . . . . Times Spotted 44 | . 20 5 . 19 Peak Tracking Total 19 | . 5 3 . 19 Tactical Retreats . | . . . . . Traps | -11 -10 -10 -10 -9 ------- Run | Yrd Mat Min Exi Min Traps Triggered 1 | . 1 . . . Indirectly . | . . . . . Trap Hack Attempts . | . . . . . Triggered . | . . . . . Disarmed . | . . . . . Reprogrammed . | . . . . . Reused . | . . . . . Traps Extracted . | . . . . . Installed . | . . . . . Triggered . | . . . . . Machines | -11 -10 -10 -10 -9 ---------- Run | Yrd Mat Min Exi Min Machines Disabled . | . . . . . Max in Single Turn . | . . . . . Machines Repaired . | . . . . . Machines Dismantled . | . . . . . Machines Sabotaged . | . . . . . Overloaded Fab Kills . | . . . . . Hacking | -11 -10 -10 -10 -9 --------- Run | Yrd Mat Min Exi Min Machines Accessed 6 | . 5 . 1 . Terminals 5 | . 5 . . . Fabricators . | . . . . . Repair Stations . | . . . . . Recycling Units . | . . . . . Scanalyzers . | . . . . . Garrison Access . | . . . . . Total Hacks 11 | . 10 . 1 . Successful 2 | . 1 . 1 . Failed 9 | . 9 . . . Catastrophic 4 | . 4 . . . Database Lockouts . | . . . . . Manual 9 | . 8 . 1 . Terminals 10 | . 10 . . . Fabricators . | . . . . . Repair Stations . | . . . . . Recycling Units . | . . . . . Scanalyzers . | . . . . . Garrison Access . | . . . . . Terminal Hacks 2 | . 1 . 1 . Branch Access Points 1 | . 1 . . . Derelict Proto ID Bank 1 | . . . 1 . Fabricator Hacks . | . . . . . Repair Station Hacks . | . . . . . Recycling Unit Hacks . | . . . . . Scanalyzer . | . . . . . Garrison Access Hacks . | . . . . . Unauthorized Hacks . | . . . . . Terminals . | . . . . . Fabricators . | . . . . . Repair Stations . | . . . . . Recycling Units . | . . . . . Scanalyzers . | . . . . . Garrison Access . | . . . . . Data Cores Recovered . | . . . . . Used . | . . . . . Hacking Detections 4 | . 4 . . . Full Trace Events 1 | . 1 . . . Feedback Events . | . . . . . Feedback Blocked . | . . . . . Robot Schematics Acquired . | . . . . . Robots Built . | . . . . . Authchips . | . . . . . Time . | . . . . . Total Robot Build Rating . | . . . . . Part Schematics Acquired . | . . . . . Parts Built . | . . . . . Authchips . | . . . . . Time . | . . . . . Total Part Build Rating . | . . . . . Parts Repaired . | . . . . . Time . | . . . . . Parts Recycled . | . . . . . Recycled Matter . | . . . . . Retrieved Matter . | . . . . . Retrieved Components . | . . . . . Parts Scanalyzed . | . . . . . Part Schematics Acquired . | . . . . . Parts Damaged . | . . . . . Bothacking | -11 -10 -10 -10 -9 ------------ Run | Yrd Mat Min Exi Min Used RIF Installer . | . . . . . Robots Hacked . | . . . . . Non-combat . | . . . . . Combat . | . . . . . Robot Hacks Applied . | . . . . . Relay Couplers Released . | . . . . . Fabnet Peak Effective % . | . . . . . Robots Rewired . | . . . . . Allies Hacked . | . . . . . Hacks Repelled . | . . . . . Allies | -11 -10 -10 -10 -9 -------- Run | Yrd Mat Min Exi Min Total Allies . | . . . . . Largest Group . | . . . . . Highest-Rated Group . | . . . . . Highest-Rated Ally . | . . . . . Total Orders . | . . . . . Ally Attacks . | . . . . . Total Damage . | . . . . . Kills . | . . . . . Allies Corrupted . | . . . . . Allies Melted . | . . . . . Intel | -11 -10 -10 -10 -9 ------- Run | Yrd Mat Min Exi Min Robot Analysis Total . | . . . . . Derelict Logs Recovered . | . . . . . Drone Launches . | . . . . . Drone Recoveries . | . . . . . Exploration | -11 -10 -10 -10 -9 ------------- Run | Yrd Mat Min Exi Min Turns Passed 1754 | 80 825 374 393 82 Spaces Moved 797 | 42 373 136 207 39 Core 19 | 15 . 4 . . Treads 445 | 27 373 45 . . Legs 333 | . . 87 207 39 Wheels . | . . . . . Hover . | . . . . . Flight . | . . . . . Fastest Speed 50 | 50 160 160 190 190 Average Speed 174 | 163 160 186 190 191 Slowest Speed 400 | 250 160 400 190 260 Overloaded Moves . | . . . . . Propulsion Burnouts . | . . . . . Robots Hopped . | . . . . . Cave-ins Triggered . | . . . . . Exploration Rate (%) 34 | 4 55 43 60 10 Regions Visited 4 Branch Regions 3 Pre-discovered Areas . | . . . . . Known Exits Taken 1 | . 1 . . . Unknown Exits Taken 3 | 1 . 1 1 . Scrap Searched . | . . . . . Spaces Dug . | . . . . . Terrain Destroyed 12 | . . . . 12 Melee . | . . . . . Projectile . | . . . . . AOE 12 | . . . . 12 Terrain Rammed . | . . . . . Walls Destroyed . | . . . . . Machines Disabled . | . . . . . Actions | -11 -10 -10 -10 -9 --------- Run | Yrd Mat Min Exi Min Total 996 | 51 484 210 207 44 Wait 40 | . 27 13 . . Move 793 | 41 372 135 206 39 Hop . | . . . . . Pick Up 14 | 4 6 2 1 1 Fast Attach 9 | 5 2 1 . 1 Attach 7 | 1 . 6 . . Detach 2 | . 1 . . 1 Swap 3 | . 2 . . 1 Drop 1 | . 1 . . . Fire 127 | . 73 53 . 1 Melee . | . . . . . Ram . | . . . . . Kick . | . . . . . Crush . | . . . . . Escape Stasis . | . . . . . Rewire . | . . . . . Trap . | . . . . . Miscellaneous . | . . . . . Route ------- -11/Scrapyard -10/Materials -10/Mines -10/Exiles -9/Mines History --------- Turn | Location | Event 32 | -11/Scrapyard | Discovered new exit (range 15) 81 | -11/Scrapyard | Entered Materials 313 | -10/Materials | Build established: Mutant 823 | -10/Materials | Identified exit to Mines 906 | -10/Materials | Entered Mines 1053 | -10/Mines | Core integrity fell below 50% 1073 | -10/Mines | Lost 7 parts (2p3n1u1w) 1273 | -10/Mines | Deemed a non-threat by the Exiles lab entrance 1273 | -10/Mines | Discovered new exit (range 5) 1280 | -10/Mines | Entered Exiles 1326 | -10/Exiles | Met 8R-AWN 1358 | -10/Exiles | Met EX-HEX 1410 | -10/Exiles | Met EX-BIN 1432 | -10/Exiles | Aligned with FarCom system 1434 | -10/Exiles | Given EX-Vault access code 1478 | -10/Exiles | Opened EX-Vault 1497 | -10/Exiles | Found Superbattery 1534 | -10/Exiles | Warned to stay clear of 0b10 Research branches 1589 | -10/Exiles | Met EX-DEC 1654 | -10/Exiles | Discovered new exit (range 12) 1673 | -10/Exiles | Left Exiles lab with Superbattery 1673 | -10/Exiles | Entered Mines 1733 | -9/Mines | Assembled infested the area 1738 | -9/Mines | Met a Derelict bent on vengeance 1738 | -9/Mines | Assisted by a Guerilla fighting off Assembled 1753 | -9/Mines | Core integrity fell below 20% 1755 | -9/Mines | Destroyed by as-22472 with Assembled Blade Last Messages --------------- 01733_ ALERT: Infestation in the mines, dispatching Demolisher response squad. 01738_ A derelict emerges from the shadows: "You need to get out of here! I've been tracking a group of Assembled to figure out where they're coming from, and they're closing on this area, come on!" 01747_ K-01 Serf collects debris. 01750_ as-13082 destroyed. 01750_ as-23120 destroyed. 01750_ Destroyed Asb. F-torch. 01750_ Aluminum Leg destroyed. 01750_ Destroyed Aluminum Leg. 01750_ K-01 Serf destroyed. 01751_ Mni. Grenade Launcher destroyed. 01751_ Med. Armor Plating destroyed. 01751_ System corrupted by crushing effect (+4). 01751_ System corrupted by crushing effect (+2). 01751_ Knocked back. 01753_ Acquired 6 matter. Map ----- +----------------------------------------------------+ | | | | | | | | | | | | | ?????????????????????????????????????????????????? | | ?????????????????????????????????????????????????? | | ?????????????????????????????????????????????????? | | ?????????????????????????????????????????????????? | | ?????????????????????????????????????????????????? | | ?????????????????????????????????????????????????? | | ?????????????? ?????????????????????????????????? | | ??????????????? ????????????????????????????????? | | ???????????????? ???????????????????????????????? | | ?????????????#### #???????????????#####??????????? | | ????????????? ###???????????## #??????????? | | ??????????????? ######?????# #??????????? | | ????????????????# #?????# ##?????????? | | ????????????????# ?????# #?????????? | | ?????????????????# a #????## ! #?????????? | | ??????????????????# a% a###### ##?????????? | | ???????????????????# aaa# ##??????????? | | ???????????????????# aa # #### ##???????????? | | ???????????????????## ##aa# ! ##???????????? | | ????????????????????????#@## ##### ##??????????? | | ????????????????????????#!## #???# #??????????? | | ????????????????????????# ## #???# #??????????? | | ????????????????????????# ## #???## ##??????????? | | ???????????????# ### ## #????####???????????? | | ???????????????# #???????????????????? | | ???????????????# """ ### #???????????????????? | | ????????????????????????# ####???????????????????? | | ????????????????????????# #??????????????????????? | | ????????????????????????# #??????????????????????? | | ???????????????????????? ??????????????????????? | | ????????????????????????###??????????????????????? | | ?????????????????????????????????????????????????? | | ?????????????????????????????????????????????????? | | ?????????????????????????????????????????????????? | | ?????????????????????????????????????????????????? | | ?????????????????????????????????????????????????? | | ?????????????????????????????????????????????????? | | ?????????????????????????????????????????????????? | | ?????????????????????????????????????????????????? | | ?????????????????????????????????????????????????? | | ?????????????????????????????????????????????????? | | ?????????????????????????????????????????????????? | | ?????????????????????????????????????????????????? | | ?????????????????????????????????????????????????? | +----------------------------------------------------+ Best States ------------- Heat Dissipation 25 Energy Generation 14 Energy Capacity 250 Matter Stores 300 Matter Capacity 300 Sight Range 16 Terrain Scan Density 10 Armor Coverage 225 Weapon Shielding 33 Evasion (%) 40 Recoil Reduction 2 Item Schematics ----------------- None Robot Schematics ------------------ None Fabricated ------------ Nothing Alien Tech Used ----------------- None Achievements -------------- None Challenges ------------ None Game ------ Seed BladeLightningBrace Manual? 0 Play Time 00:11:45 Cumulative 58.1 hours Start 2024.05.05 @ 08:28:44 End 2024.05.05 @ 08:40:03 Sessions 1 Manual Loads 0 Difficulty Rogue Special Mode None Game No. 88 Rogue 88 Adventurer 0 Explorer 0 Win Type - Total 0 Types 0/0/0/0/0/0/0/0/0 Lore% 29 Gallery% 37 Achievement% 29 Wizard Run 0 Options --------- Layout 1 ASCII 0 Keyboard 1 Movement Numpad Keybinds 0 Fullscreen 1 Font 24/Smallcaps Map View 50x35 Zoom Use 0% Tactical HUD 1 Map Filters NONE Filters NONE Steam 1 RUN: bce6dac8-43d3-4c21-acbb-a78919f5e14e